bitfinex/quotes_SOLUSD_20240603
["timestamp","ask_amount","ask_price","bid_price","bid_amount"]
[1717448426269,6.6042,165.74,165.7,6.22]
[1717448426983,6.6042,165.74,165.64,45.0]
[1717448427368,6.6042,165.74,165.71,6.22]
[1717448427568,6.6042,165.74,165.64,45.0]
[1717448427767,0.17,165.75,165.71,6.22]
[1717448428190,6.6042,165.75,165.71,6.22]
[1717448428368,0.17,165.74,165.71,6.22]
[1717448428769,0.17,165.74,165.64,45.0]
[1717448428983,0.17,165.74,165.71,6.22]
[1717448429300,0.17,165.74,165.64,45.0]
[1717448429498,0.17,165.74,165.71,6.22]
[1717448430190,0.17,165.74,165.64,45.0]
[1717448430390,2.2332,165.69,165.64,53.5089]
[1717448430594,2.2332,165.69,165.68,6.22]
[1717448431275,4.4667,165.67,165.61,0.2]
[1717448431595,2.2337,165.64,165.61,6.4133]
[1717448431774,2.2337,165.64,165.63,6.22]
[1717448432195,2.2337,165.64,165.61,6.4133]
[1717448432401,2.2337,165.64,165.63,6.22]
[1717448435510,2.2339,165.63,165.61,6.4133]
[1717448435710,2.2339,165.63,165.62,6.22]
[1717448440824,2.2339,165.63,165.62,57.363]
[1717448441021,6.6991,165.7,165.62,51.22]
[1717448441208,2.2335,165.66,165.62,45.0]
[1717448441523,2.2335,165.66,165.65,6.22]
[1717448442804,2.2335,165.66,165.62,51.143]
[1717448443319,2.2335,165.66,165.65,6.22]
[1717448444298,2.2335,165.66,165.65,51.22]
[1717448445822,2.2335,165.66,165.65,6.22]
[1717448446928,2.2335,165.66,165.62,6.143]
[1717448447136,2.2336,165.65,165.63,51.6202]
[1717448447339,2.2336,165.65,165.64,6.22]
[1717448450151,2.2336,165.65,165.61,0.2]
[1717448450352,2.2336,165.65,165.64,6.22]
[1717448450717,2.2336,165.65,165.61,0.2]
[1717448451050,2.2336,165.65,165.64,6.22]
[1717448453256,2.2338,165.64,165.61,0.2]
[1717448453430,2.2338,165.64,165.63,6.22]
[1717448453625,2.2339,165.63,165.61,0.2]
[1717448453845,2.2339,165.63,165.62,6.22]
[1717448455045,2.2339,165.63,165.61,0.2]
[1717448455250,2.2339,165.63,165.62,6.22]
[1717448455458,2.2339,165.63,165.61,0.2]
[1717448455636,2.2339,165.63,165.62,6.22]
[1717448455824,2.2339,165.63,165.61,0.2]
[1717448456138,2.2339,165.63,165.62,6.22]
[1717448459454,2.2339,165.63,165.61,0.2]
[1717448459837,2.2339,165.63,165.62,6.22]
[1717448460035,2.2339,165.63,165.61,0.2]
[1717448460228,2.2339,165.63,165.62,6.22]
[1717448460434,2.2339,165.63,165.61,0.2]
[1717448460739,2.2339,165.63,165.62,6.22]
[1717448467844,20.0969,165.7,165.62,12.2617]
[1717448468048,22.3298,165.7,165.69,6.22]
[1717448468371,13.3977,165.7,165.69,6.22]
[1717448469452,2.2329,165.7,165.69,6.22]
[1717448470747,2.2329,165.7,165.69,5.32690347]
[1717448472578,2.2329,165.7,165.69,6.22]
[1717448474361,2.2329,165.7,165.67,2.2333]
[1717448474670,2.2329,165.7,165.69,6.22]
[1717448474846,13.5232394,165.77,165.62,8.6884]
[1717448475046,2.2333,165.67,165.63,6.4545]
[1717448475459,2.2333,165.67,165.62,2.2339]
[1717448475460,2.2335,165.66,165.61,6.2614]
[1717448475663,2.2335,165.66,165.65,6.22]
[1717448487912,2.2337,165.65,165.61,0.2]
[1717448488309,2.2337,165.65,165.64,6.22]
[1717448492701,2.2337,165.65,165.64,51.22]
[1717448500720,2.2332,165.69,165.64,53.4537]
[1717448500920,2.2332,165.69,165.68,6.22]
[1717448504907,2.2332,165.69,165.64,53.3771]
[1717448505108,2.2332,165.69,165.68,6.22]
[1717448505458,2.2333,165.67,165.65,45.0]
[1717448505742,2.2333,165.67,165.66,6.22]
[1717448505908,2.2333,165.67,165.65,45.0]
[1717448506108,2.2333,165.67,165.66,6.22]
[1717448506833,2.2333,165.67,165.65,45.0]
[1717448507037,2.2333,165.67,165.66,6.22]
[1717448508564,2.2333,165.67,165.65,45.0]
[1717448508857,2.2333,165.67,165.66,6.22]
[1717448512431,2.2333,165.67,165.66,51.22]
[1717448515248,2.2333,165.67,165.66,57.44]
[1717448515452,2.2329,165.71,165.66,65.9616]
[1717448515760,2.2329,165.71,165.7,6.22]
[1717448519944,2.233,165.7,165.68,24.88]
[1717448523788,2.233,165.7,165.68,27.1131]
[1717448523988,2.233,165.7,165.69,51.22]
[1717448524289,2.2325,165.74,165.69,53.453]
[1717448524600,11.1609,165.76,165.69,51.22]
[1717448524601,2.2325,165.73,165.69,51.22]
[1717448524889,2.2325,165.73,165.69,53.453]
[1717448525062,2.2325,165.73,165.72,6.22]
[1717448525701,6.049,165.78,165.72,51.22]
[1717448525853,2.2323,165.75,165.72,6.22]
[1717448526059,2.2323,165.75,165.74,6.22]
[1717448527616,2.2323,165.75,165.74,51.22]
[1717448528786,6.6953,165.79,165.74,51.22]
[1717448529001,2.2318,165.78,165.76,6.22]
[1717448529298,2.2318,165.78,165.77,6.22]
[1717448530192,2.2318,165.78,165.77,51.22]
[1717448531672,2.2318,165.78,165.77,45.0]
[1717448532498,2.2313,165.82,165.77,45.0]
[1717448532701,2.2313,165.82,165.81,6.22]
[1717448535690,2.2313,165.82,165.81,51.22]
[1717448537887,0.2,165.84,165.81,51.22]
[1717448538106,0.2,165.84,165.83,6.22]
[1717448539199,0.2,165.84,165.83,12.44]
[1717448540191,2.431,165.84,165.83,12.44]
[1717448541702,2.431,165.84,165.81,45.0]
[1717448542016,2.2312,165.83,165.81,45.0]
[1717448542201,2.2312,165.83,165.77,15.6359]
[1717448542399,2.2312,165.83,165.82,6.22]
[1717448543412,2.2312,165.83,165.82,51.22]
[1717448543594,0.2,165.84,165.82,51.22]
[1717448543797,0.2,165.84,165.83,51.22]
[1717448544305,0.2,165.84,165.83,57.44]
[1717448549718,0.2,165.84,165.83,59.6712]
[1717448550800,0.2,165.84,165.83,84.4538]
[1717448551109,2.2303,165.9,165.83,86.685]
[1717448551297,2.2303,165.9,165.89,6.22]
[1717448557105,2.2303,165.9,165.89,51.22]
[1717448557899,2.2303,165.9,165.89,45.0]
[1717448558104,2.2303,165.9,165.85,2.2309]
[1717448558308,2.2303,165.9,165.89,6.22]
[1717448568039,2.2303,165.9,165.89,51.22]
[1717448582646,2.4297,165.94,165.89,51.39]
[1717448582848,2.4297,165.94,165.93,6.22]
[1717448583053,2.4297,165.94,165.92,24.88]
[1717448583465,2.4297,165.94,165.93,45.0]
[1717448585647,2.4297,165.94,165.93,51.22]
[1717448586676,0.2,165.94,165.93,53.4498]
[1717448588971,0.2,165.94,165.93,51.22]
[1717448590094,0.2,165.94,165.93,53.4498]
[1717448592098,0.2,165.94,165.93,53.6198]
[1717448592290,0.2,165.94,165.93,53.7898]
[1717448594592,2.2293,165.97,165.94,2.2296]
[1717448594765,2.2293,165.97,165.96,6.22]
[1717448594964,2.2293,165.97,165.96,51.22]
[1717448597193,2.2293,165.97,165.96,6.22]
[1717448597498,2.2293,165.97,165.94,2.2296]
[1717448597679,2.2293,165.97,165.96,6.22]
[1717448599782,2.2293,165.97,165.94,2.2296]
[1717448599984,2.2293,165.97,165.96,6.22]
[1717448601372,2.2293,165.97,165.96,51.22]
[1717448602610,2.2293,165.97,165.96,45.0]
[1717448602799,2.2293,165.97,165.96,51.22]
[1717448606183,2.2293,165.97,165.96,45.0]
[1717448606684,2.2293,165.97,165.96,51.22]
[1717448608811,4.4577,166.01,165.96,51.22]
[1717448609110,6.6864,166.01,166.0,6.22]
[1717448609583,2.2289,166.0,165.96,45.0]
[1717448609783,4.4577,166.01,165.92,24.88]
[1717448610099,2.2293,165.97,165.92,27.1099]
[1717448610287,11.1447,166.0,165.92,24.88]
[1717448610288,2.2294,165.96,165.92,24.88]
[1717448610490,2.2294,165.96,165.95,6.22]
[1717448613312,2.2294,165.96,165.93,2.2297]
[1717448613505,2.2294,165.96,165.95,6.22]
[1717448619608,2.2294,165.96,165.95,51.22]
[1717448624988,2.229,166.0,165.95,51.22]
[1717448625187,2.229,165.99,165.96,45.0]
[1717448625713,2.229,165.99,165.98,6.22]
[1717448630611,2.2285,166.03,165.98,6.22]
[1717448630823,2.2285,166.03,165.97,2.2292]
[1717448630824,2.2285,166.03,166.02,6.22]
[1717448635919,2.4284,166.04,166.02,6.22]
[1717448636218,2.4284,166.04,166.03,6.22]
[1717448636618,2.4284,166.04,166.0,24.88]
[1717448636842,0.2,166.04,166.0,24.88]
[1717448637030,2.2287,166.02,165.97,2.2293]
[1717448637221,2.2287,166.02,166.01,6.22]
[1717448640536,2.2287,166.02,165.97,2.2292]
[1717448640732,2.2289,166.0,165.94,24.9493304]
[1717448640922,2.2289,166.0,165.99,6.22]
[1717448643724,2.2289,166.0,165.95,2.2294]
[1717448643926,2.229,165.99,165.98,6.22]
[1717448644924,6.5333,166.03,165.9,9.0467304]
[1717448645134,6.5333,166.03,165.91,2.2301]
[1717448645135,2.2296,165.95,165.91,2.2301]
[1717448645449,2.2296,165.95,165.92,8.4499]
[1717448645633,2.2296,165.95,165.93,2.2298]
[1717448647849,2.2296,165.95,165.92,24.88]
[1717448647850,2.2296,165.95,165.92,27.1099]
[1717448649326,2.2296,165.95,165.93,45.0]
[1717448649836,2.2296,165.95,165.93,47.2298]
[1717448650432,2.2296,165.95,165.93,45.0]
[1717448653033,20.0595,166.01,165.94,6.22]
[1717448653034,11.1441,166.01,165.94,6.22]
[1717448653233,2.2289,166.0,165.99,6.22]
[1717448653438,2.2292,165.98,165.93,47.2297]
[1717448653928,2.2292,165.98,165.97,6.22]
[1717448654732,6.5944,166.04,165.97,6.22]
[1717448654952,6.5944,166.04,165.95,2.2295]
[1717448654953,2.2289,166.0,165.95,2.2295]
[1717448655161,2.2289,166.0,165.99,6.22]
[1717448663562,2.2289,166.0,165.99,57.44]
[1717448667762,0.2,166.04,165.99,57.44]
[1717448667949,2.4283,166.04,166.03,6.22]
[1717448677059,2.4283,166.04,166.03,51.22]
[1717448682194,0.2,166.04,166.03,53.6185]
[1717448682688,0.2,166.04,166.03,59.8022]
[1717448683362,2.2279,166.08,166.03,59.9722]
[1717448683680,2.2279,166.08,166.07,6.22]
[1717448685671,2.2279,166.08,166.07,51.22]
[1717448689888,2.2274,166.11,166.07,51.22]
[1717448690099,2.2274,166.11,166.1,6.22]
[1717448694913,2.2274,166.11,166.08,6.22]
[1717448695088,2.2274,166.11,166.1,6.22]
[1717448695784,2.2276,166.1,166.05,2.2281]
[1717448695988,2.2276,166.1,166.09,6.22]
[1717448700304,2.2277,166.09,166.04,2.2283]
[1717448700507,2.2277,166.09,166.08,6.22]
[1717448702107,2.2277,166.09,166.04,47.2283]
[1717448702312,6.6819,166.12,166.04,45.0]
[1717448702517,2.228,166.07,166.04,45.0]
[1717448702716,2.228,166.07,166.06,6.22]
[1717448703094,2.228,166.07,166.04,45.0]
[1717448703286,6.6832,166.09,166.0,24.88]
[1717448703488,2.2283,166.05,166.01,2.2287]
[1717448703800,2.2283,166.05,166.04,6.22]
[1717448704314,2.2283,166.05,166.0,27.1088]
[1717448704607,2.2283,166.05,166.04,6.22]
[1717448705117,2.2283,166.05,166.0,2.2288]
[1717448705304,2.2283,166.05,166.04,6.22]
[1717448707722,2.2283,166.05,166.01,2.2287]
[1717448707918,2.2283,166.05,166.01,45.0]
[1717448708112,2.2283,166.05,166.04,6.22]
[1717448711419,2.2283,166.05,166.01,47.2287]
[1717448711420,2.2283,166.05,166.02,2.2286]
[1717448711730,2.2283,166.05,166.04,6.22]
[1717448719531,2.2283,166.05,166.02,45.0]
[1717448719739,2.2283,166.05,166.04,6.22]
[1717448722808,2.2283,166.05,166.04,51.22]
[1717448723926,2.2283,166.05,166.04,45.0]
[1717448724132,2.2283,166.05,166.04,51.22]
[1717448729020,2.2278,166.09,166.04,53.4482]
[1717448729227,2.2278,166.09,166.08,6.22]
[1717448736742,2.2278,166.09,166.08,12.44]
[1717448736945,2.2273,166.12,166.08,76.1]
[1717448737161,2.2273,166.12,166.11,6.22]
[1717448741650,2.2273,166.12,166.11,51.22]
[1717448754136,2.2273,166.12,166.11,45.0]
[1717448754356,2.2273,166.12,166.11,51.22]
[1717448760476,2.2273,166.12,166.08,24.88]
[1717448760664,2.2273,166.12,166.11,6.22]
[1717448763645,2.2275,166.11,166.06,2.228]
[1717448763847,2.2277,166.09,166.03,2.2283]
[1717448764056,6.682,166.12,166.07,6.22]
[1717448764057,2.2279,166.08,166.07,6.22]
[1717448764269,2.228,166.07,166.06,6.22]
[1717448765669,2.228,166.07,166.03,2.2284]
[1717448765848,2.228,166.07,166.06,6.22]
[1717448770985,17.4311,166.13,166.06,6.22]
[1717448771279,2.2276,166.1,166.06,45.0]
[1717448771463,2.2276,166.1,166.09,6.22]
[1717448775273,2.2276,166.1,166.06,45.0]
[1717448775587,2.2276,166.1,166.09,6.22]
[1717448777581,2.2276,166.1,166.09,51.22]
[1717448778666,2.2276,166.1,166.09,6.22]
[1717448779678,2.2277,166.09,166.08,6.22]
[1717448781081,2.2277,166.09,166.04,2.2283]
[1717448781290,2.2277,166.09,166.08,6.22]
[1717448782194,2.2278,166.08,166.04,9.03796194]
[1717448782364,2.2278,166.08,166.07,6.22]
[1717448783167,2.2278,166.08,166.06,6.22]
[1717448786493,2.2278,166.08,166.04,2.2283]
[1717448786696,2.2278,166.08,166.06,6.22]
[1717448794502,2.2278,166.08,166.07,6.22]
[1717448794699,2.2278,166.08,166.06,6.22]
[1717448798497,2.2278,166.08,166.04,2.2283]
[1717448798700,2.2278,166.08,166.06,6.22]
[1717448800314,2.2278,166.08,166.04,2.2283]
[1717448800515,2.2278,166.08,166.06,6.22]
[1717448801505,2.2278,166.08,166.07,6.22]
[1717448801808,2.2278,166.08,166.03,47.2285]
[1717448801989,2.2278,166.08,166.07,6.22]
[1717448802390,2.2278,166.08,166.04,2.2283]
[1717448802614,2.2278,166.08,166.07,6.22]
[1717448804600,2.2278,166.08,166.04,2.2283]
[1717448805304,2.2278,166.08,166.07,6.22]
[1717448806897,2.2278,166.08,166.06,6.22]
[1717448813524,6.2316,166.11,166.07,6.59941967]
[1717448813724,6.2316,166.11,166.08,6.59941967]
[1717448813905,2.2275,166.1,166.09,6.59941967]
[1717448814601,2.2275,166.1,166.09,2.26035119]
[1717448815514,2.2277,166.09,166.06,6.22]
[1717448815716,2.2277,166.09,166.07,0.92994818]
[1717448816022,2.2277,166.09,166.06,6.22]
[1717448816213,2.2277,166.09,166.07,0.92996269]
[1717448816528,2.2277,166.09,166.06,6.22]
[1717448816706,2.2277,166.09,166.07,0.92999319]
[1717448817043,2.2277,166.09,166.06,6.22]
[1717448817204,2.2277,166.09,166.07,0.92998955]
[1717448817403,2.2277,166.09,166.06,6.22]
[1717448818735,2.2278,166.08,166.06,6.22]
[1717448819603,2.2278,166.08,166.03,56.26841046]
[1717448819805,2.2278,166.08,166.06,6.22]
[1717448820019,2.2278,166.08,166.04,2.2283]
[1717448820222,2.2278,166.08,166.05,6.22]
[1717448822322,2.2279,166.07,166.02,11.26851046]
[1717448822634,2.2279,166.07,166.04,6.22]
[1717448824231,2.2279,166.07,166.05,6.22]
[1717448824614,2.2281,166.06,166.03,2.2284]
[1717448824813,2.2281,166.06,166.05,6.22]
[1717448826825,2.2281,166.06,166.03,56.26841046]
[1717448827131,2.2281,166.06,166.05,6.22]
[1717448839455,2.2281,166.06,166.05,15.26001046]
[1717448839652,2.2281,166.06,166.05,15.25922367]
[1717448839832,2.2281,166.06,166.05,6.22]
[1717448847759,2.2281,166.06,166.03,45.0]
[1717448848063,2.2281,166.06,166.05,6.22]
[1717448855564,2.2281,166.06,166.02,45.0]
[1717448855763,2.2281,166.06,166.05,6.22]
[1717448870490,2.2281,166.06,166.02,6.0916]
[1717448870672,2.2281,166.06,166.05,6.22]
[1717448879876,2.2281,166.06,166.02,8.3202]
[1717448880195,2.2281,166.06,166.05,6.22]
[1717448887380,2.2278,166.09,166.05,51.39]
[1717448887587,2.2278,166.09,166.08,6.22]
[1717448899216,2.2278,166.09,166.05,2.3982]
[1717448899429,2.2278,166.08,166.03,47.2284]
[1717448899717,2.2281,166.06,166.01,2.2286]
[1717448900015,2.2281,166.06,166.05,6.22]
[1717448901203,4.4554,166.09,166.03,9.03983993]
[1717448901204,2.2282,166.05,166.03,9.03983993]
[1717448901517,2.2282,166.05,166.04,6.22]
[1717448902503,2.2282,166.05,166.03,9.03983993]
[1717448902696,2.2282,166.05,166.04,6.22]
[1717448912313,2.2282,166.05,166.01,11.26853993]
[1717448912513,2.2282,166.05,166.04,6.22]
[1717448914627,2.2282,166.05,166.01,11.26853993]
[1717448914828,2.2282,166.05,166.04,6.22]
[1717448933436,6.22,166.07,166.0,9.04075025]
[1717448933639,2.2287,166.01,166.0,15.26075025]
[1717448934431,2.2287,166.01,166.0,6.22]
[1717448934624,2.2287,166.01,166.0,15.26075025]
[1717448934825,2.2287,166.01,166.0,6.22]
[1717448935841,2.2287,166.01,166.0,15.26075025]
[1717448936635,2.2287,166.01,165.99,9.04075025]
[1717448936855,2.2287,166.01,165.97,2.2292]
[1717448937020,2.2287,166.01,165.97,56.27203197]
[1717448937209,2.2287,166.01,166.0,6.22]
[1717448941139,6.6855,166.03,165.97,9.04283197]
[1717448941342,2.2289,166.0,165.97,9.04283197]
[1717448941634,2.2289,166.0,165.98,6.22]
[1717448942442,2.2289,166.0,165.99,6.22]
[1717448944549,2.2289,166.0,165.98,6.22]
[1717448945829,2.2289,166.0,165.99,6.22]
[1717448950378,2.2289,166.0,165.96,17.62483197]
[1717448950661,2.2289,166.0,165.99,6.22]
[1717448954159,2.2289,166.0,165.97,45.0]
[1717448954482,2.2289,166.0,165.99,6.22]
[1717448960254,2.2289,166.0,165.97,45.0]
[1717448960460,2.2289,166.0,165.99,6.22]
[1717448970774,2.229,165.99,165.97,9.04283197]
[1717448971086,2.229,165.99,165.98,6.22]
[1717448973256,2.229,165.99,165.97,9.04283197]
[1717448973596,2.229,165.99,165.98,6.22]
[1717448973798,2.229,165.99,165.97,9.04283197]
[1717448974083,2.2291,165.98,165.97,9.04283197]
[1717448974302,2.2291,165.98,165.97,15.26283197]
[1717448974647,2.2291,165.98,165.93,2.2297]
[1717448974874,2.2291,165.98,165.97,15.26305327]
[1717448976180,2.2291,165.98,165.97,6.22]
[1717448976364,2.2291,165.98,165.97,9.0430195]
[1717448976565,2.2291,165.98,165.97,15.2630195]
[1717448976782,2.2291,165.98,165.97,6.22]
[1717448977377,2.2291,165.98,165.95,9.0430195]
[1717448977593,2.2291,165.98,165.96,6.22]
[1717448979257,2.2291,165.98,165.96,9.0430195]
[1717448979479,2.2291,165.98,165.97,6.22]
[1717448980277,8.25,165.97,165.96,9.0430195]
[1717448980458,2.2294,165.96,165.93,6.22]
[1717448980659,2.2297,165.94,165.93,6.22]
[1717448984492,2.2297,165.94,165.91,0.2]
[1717448984702,2.2297,165.94,165.93,6.22]
[1717448990721,2.2297,165.94,165.91,0.2]
[1717448991023,2.2297,165.94,165.93,6.22]
[1717449012341,2.2297,165.94,165.91,0.2]
[1717449012522,2.2297,165.94,165.93,6.22]
[1717449012937,2.2297,165.94,165.91,0.2]
[1717449013135,2.2297,165.94,165.93,6.22]
[1717449013325,2.2297,165.94,165.91,0.2]
[1717449013523,2.2297,165.94,165.93,6.22]
[1717449017259,2.2293,165.97,165.93,6.22]
[1717449017550,2.2293,165.97,165.96,6.22]
[1717449031057,2.229,166.0,165.96,6.22]
[1717449031261,2.229,166.0,165.99,6.22]
[1717449031488,2.229,166.0,165.99,51.22]
[1717449043157,2.2285,166.03,165.99,51.22]
[1717449043353,2.2285,166.03,166.02,6.22]
[1717449048881,2.2288,166.01,165.96,11.27214879]
[1717449049049,2.2288,166.01,166.0,6.22]
[1717449049351,2.229,165.99,165.95,9.04284879]
[1717449049546,2.229,165.99,165.98,6.22]
[1717449050257,2.2291,165.98,165.95,9.04281361]
[1717449050449,2.2291,165.98,165.97,6.22]
[1717449050944,2.2293,165.97,165.94,9.04281361]
[1717449051149,2.2293,165.97,165.96,6.22]
[1717449051658,2.2293,165.97,165.93,2.2298]
[1717449051850,2.2293,165.97,165.96,6.22]
[1717449054780,2.2293,165.97,165.93,2.2298]
[1717449054980,2.2293,165.97,165.92,11.27271361]
[1717449055162,12.8164,166.0,165.91,9.24281361]
[1717449055496,2.2297,165.94,165.92,6.22]
[1717449056953,2.2297,165.94,165.93,6.22]
[1717449060562,2.2299,165.92,165.91,6.42]
[1717449061171,2.2299,165.92,165.91,0.2]
[1717449061388,2.2299,165.92,165.91,6.42]
[1717449061572,2.2299,165.92,165.91,0.2]
[1717449064491,2.2299,165.92,165.91,6.42]
[1717449091618,2.2299,165.92,165.91,0.2]
[1717449091828,13.3797,165.92,165.91,0.2]
[1717449112560,2.2299,165.92,165.91,6.42]
[1717449112946,2.2299,165.92,165.91,15.46763765]
[1717449113869,2.2299,165.92,165.91,15.46658954]
[1717449115665,2.2299,165.92,165.91,6.42]
[1717449115968,2.2299,165.92,165.91,15.46658954]
[1717449116946,2.2299,165.92,165.91,6.42]
[1717449118354,2.2299,165.92,165.91,15.46658954]
[1717449118967,2.2299,165.92,165.91,6.42]
[1717449121852,2.2299,165.92,165.91,15.46658954]
[1717449122345,2.2299,165.92,165.91,6.42]
[1717449123475,2.2299,165.92,165.91,0.2]
[1717449127381,6.6898,165.92,165.91,0.2]
[1717449127751,22.4696,165.92,165.91,0.2]
[1717449127983,2.2307,165.87,165.85,6.22]
[1717449128165,2.2307,165.86,165.81,0.2]
[1717449128372,2.2307,165.86,165.84,6.22]
[1717449132453,2.2311,165.84,165.81,0.2]
[1717449132880,2.2312,165.83,165.81,0.2]
[1717449133078,2.2313,165.82,165.81,0.2]
[1717449133280,2.2313,165.82,165.81,6.42]
[1717449138464,2.2313,165.82,165.81,0.2]
[1717449138876,2.2313,165.82,165.81,6.42]
[1717449142386,2.2313,165.82,165.81,0.2]
[1717449142694,2.2313,165.82,165.81,6.42]
[1717449150281,2.2313,165.82,165.81,0.2]
[1717449150480,2.2313,165.82,165.81,6.42]
[1717449161895,2.2313,165.82,165.81,13.0362]
[1717449176605,2.2313,165.82,165.81,6.8162]
[1717449176794,2.2313,165.82,165.81,13.0362]
[1717449178226,2.2313,165.82,165.81,6.8162]
[1717449178529,2.2313,165.82,165.81,6.42]
[1717449179729,2.2313,165.82,165.81,0.2]
[1717449180044,2.2313,165.82,165.81,6.42]
[1717449181690,2.2313,165.82,165.81,0.2]
[1717449181891,22.3132,165.82,165.81,0.2]
[1717449183200,28.7453,165.82,165.81,0.2]
[1717449183407,28.7453,165.82,165.71,0.2]
[1717449183408,2.2322,165.75,165.71,0.2]
[1717449183599,2.2322,165.75,165.74,6.22]
[1717449185233,2.2322,165.75,165.71,2.4327]
[1717449185406,2.2322,165.75,165.74,6.22]
[1717449186124,2.2322,165.75,165.71,2.4327]
[1717449186331,2.2322,165.75,165.71,0.2]
[1717449186629,2.2322,165.75,165.74,6.22]
[1717449192240,2.2322,165.75,165.74,5.59]
[1717449192522,2.2322,165.75,165.71,2.4328]
[1717449192702,2.2322,165.75,165.74,5.59]
[1717449195519,2.2318,165.79,165.74,50.59]
[1717449195727,2.2318,165.79,165.78,5.59]
[1717449197009,2.2318,165.79,165.74,53.5619]
[1717449197208,2.2318,165.79,165.78,5.59]
[1717449202243,2.2318,165.79,165.74,51.3296]
[1717449202244,11.1574,165.81,165.74,51.3296]
[1717449202424,2.232,165.77,165.74,51.3296]
[1717449202628,2.232,165.77,165.76,11.18]
[1717449205525,2.232,165.77,165.72,2.2326]
[1717449205918,2.232,165.77,165.76,5.59]
[1717449206631,2.2321,165.76,165.71,53.7008]
[1717449206935,2.2321,165.76,165.75,5.59]
[1717449207324,2.2321,165.76,165.71,8.7008]
[1717449207653,2.2321,165.76,165.75,5.59]
[1717449208221,2.2321,165.76,165.71,8.7008]
[1717449208540,2.2321,165.76,165.75,5.59]
[1717449213233,2.2323,165.75,165.71,0.2]
[1717449213739,2.2324,165.74,165.71,0.2]
[1717449213932,2.2324,165.74,165.73,5.59]
[1717449216223,2.2324,165.74,165.71,0.2]
[1717449216632,2.2324,165.74,165.73,5.59]
[1717449220053,2.2324,165.74,165.71,0.2]
[1717449220263,2.2324,165.74,165.73,5.59]
[1717449223067,2.2324,165.74,165.71,0.2]
[1717449223236,2.2324,165.74,165.73,5.59]
[1717449224362,2.2325,165.73,165.71,0.2]
[1717449224734,2.2325,165.73,165.72,5.59]
[1717449225261,2.2325,165.73,165.71,0.2]
[1717449225478,2.2325,165.73,165.72,5.59]
[1717449225758,2.2325,165.73,165.71,0.2]
[1717449225969,2.2325,165.73,165.72,5.59]
[1717449226751,8.5227,165.73,165.72,5.59]
[1717449227059,2.2329,165.7,165.69,5.59]
[1717449228832,2.2332,165.68,165.64,6.5371]
[1717449229058,2.2332,165.68,165.64,8.7708]
[1717449229241,2.2332,165.68,165.67,5.59]
[1717449232042,2.2332,165.68,165.63,8.3207]
[1717449232445,2.2332,165.68,165.67,5.59]
[1717449232840,2.2333,165.67,165.66,5.59]
[1717449234171,2.2333,165.67,165.61,2.434]